[Event "EYCC Open-U12 2019"]
[Site "Bratislava"]
[Date "2019.08.09"]
[Round "8.33"]
[White "Ivanov, Svetlen"]
[Black "Cnejev, Vladimir-Alexandru"]
[Result "0-1"]
[ECO "D35"]
[WhiteElo "1717"]
[BlackElo "1907"]
[Annotator "NA"]
[PlyCount "85"]
[EventDate "2019.08.02"]
[EventType "swiss"]
[EventCountry "SVK"]
[SourceTitle "playchess.com"]
[Source "ChessBase"]
[SourceQuality "1"]
[TimeControl "40/5400+30:1800+30"]

1. d4 {[%emt 0:00:00]} d5 {[%emt 0:01:43]} 2. c4 {[%emt 0:00:00]} e6 {[%emt 0:00:11]} 3. Nc3 {[%emt 0:00:00]} Nf6 {[%emt 0:00:07]} 4. cxd5 {[%emt 0:00:05]} exd5 {[%emt 0:00:03]} 5. Bg5 {[%emt 0:00:09]} c6 {[%emt 0:00:04]} 6. e3 {[%emt 0:00:11]} Bf5 {[%emt 0:00:05]} 7. Qf3 {[%emt 0:00:20]} Bg6 {[%emt 0:00:01]} 8. Bxf6 {[%emt 0:01:00]} Qxf6 {[%emt 0:00:02]} 9. Qxf6 {[%emt 0:00:01]} gxf6 {[%emt 0:00:01]} 10. Nf3 {[%emt 0:00:02]} Nd7 {[%emt 0:00:21]} 11. Nh4 {[%emt 0:01:37]} Nb6 {[%emt 0:02:37]} 12. Ne2 {[%emt 0:14:44]} Bb4+ {[%emt 0:02:12]} 13. Kd1 {[%emt 0:06:02]} Nc4 {[%emt 0:24:34]} 14. Nxg6 {[%emt 0:02:00]} hxg6 {[%emt 0:07:01]} 15. Kc2 {[%emt 0:08:25]} a5 {[%emt 0:06:46]} 16. Nf4 {[%emt 0:04:37]} Nb6 {[%emt 0:01:04]} 17. Be2 {[%emt 0:01:29]} Bd6 {[%emt 0:02:36]} 18. Nd3 {[%emt 0:00:21]} a4 {[%emt 0:00:42]} 19. h4 {[%emt 0:02:59]} Kf8 {[%emt 0:03:19]} 20. h5 {[%emt 0:01:39]} Kg7 {[%emt 0:00:13]} 21. Rh3 {[%emt 0:02:17]} Nd7 {[%emt 0:06:03]} 22. Rah1 {[%emt 0:07:20]} b6 {[%emt 0:02:36]} 23. Bg4 {[%emt 0:03:26]} f5 {[%emt 0:04:17]} 24. Bf3 {[%emt 0:01:26]} Nf6 {[%emt 0:00:41]} 25. Be2 {[%emt 0:16:59]} c5 {[%emt 0:07:42]} 26. hxg6 {[%emt 0:02:52]} Rxh3 {[%emt 0:00:47]} 27. Rxh3 {[%emt 0:00:09]} fxg6 {[%emt 0:00:27]} 28. Ne5 {[%emt 0:01:03]} Rc8 {[%emt 0:02:56]} 29. Kd1 {[%emt 0:07:58]} Ne4 {[%emt 0:05:22]} 30. Rf3 {[%emt 0:00:34]} a3 {[%emt 0:05:38]} 31. bxa3 {[%emt 0:01:27]} Nc3+ {[%emt 0:09:14]} 32. Kd2 {[%emt 0:01:31]} cxd4 {[%emt 0:03:06]} 33. exd4 {[%emt 0:00:16]} Bxa3 {[%emt 0:01:04]} 34. Bd3 {[%emt 0:05:04]} Bb4 {[%emt 0:02:14]} 35. Ke3 {[%emt 0:00:31]} Nd1+ {[%emt 0:01:08]} 36. Kf4 {[%emt 0:03:46]} Bd2+ {[%emt 0:00:19]} 37. Kg3 {[%emt 0:00:04]} Ra8 {[%emt 0:00:40]} 38. Bc2 {[%emt 0:02:16]} Nc3 {[%emt 0:00:27]} 39. Bb3 {[%emt 0:01:15]} Ne2+ {[%emt 0:00:34]} 40. Kh2 Rh8+ 41. Rh3 Ra8 42. Rf3 Nxd4 43. Rd3 0-1

[Event "EYCC Open-U12 2019"]
[Site "Bratislava"]
[Date "2019.08.09"]
[Round "8.34"]
[White "Werner, Hong Quan Dan"]
[Black "Stevanovic, Jovan"]
[Result "0-1"]
[ECO "B56"]
[WhiteElo "1734"]
[BlackElo "1783"]
[Annotator "NA"]
[PlyCount "98"]
[EventDate "2019.08.02"]
[EventType "swiss"]
[EventCountry "SVK"]
[SourceTitle "playchess.com"]
[Source "ChessBase"]
[SourceQuality "1"]
[TimeControl "40/5400+30:1800+30"]

1. e4 {[%emt 0:00:14]} c5 {[%emt 0:00:00]} 2. Nf3 {[%emt 0:00:44]} d6 {[%emt 0:00:40]} 3. d4 {[%emt 0:00:29]} cxd4 {[%emt 0:00:27]} 4. Nxd4 {[%emt 0:00:18]} Nf6 {[%emt 0:00:56]} 5. Nc3 {[%emt 0:01:08]} Nc6 {[%emt 0:00:13]} 6. f3 {[%emt 0:00:51]} e5 {[%emt 0:01:05]} 7. Nb3 {[%emt 0:00:54]} Be7 {[%emt 0:01:01]} 8. Be3 {[%emt 0:01:59]} Be6 {[%emt 0:00:49]} 9. Nd5 {[%emt 0:01:35]} Bxd5 {[%emt 0:03:40]} 10. exd5 {[%emt 0:01:01]} Nb4 {[%emt 0:00:10]} 11. c4 {[%emt 0:00:21]} a5 {[%emt 0:00:05]} 12. Qd2 {[%emt 0:00:10]} b6 {[%emt 0:00:04]} 13. Qf2 {[%emt 0:06:24]} Nd7 {[%emt 0:05:40]} 14. a3 {[%emt 0:00:44]} Na6 {[%emt 0:01:44]} 15. Be2 {[%emt 0:04:34]} O-O {[%emt 0:01:36]} 16. O-O {[%emt 0:01:33]} a4 {[%emt 0:00:42]} 17. Nd2 {[%emt 0:01:20]} Nac5 {[%emt 0:01:30]} 18. Rae1 {[%emt 0:09:27]} f5 {[%emt 0:04:52]} 19. f4 {[%emt 0:00:16]} e4 {[%emt 0:00:10]} 20. Nb1 {[%emt 0:04:49]} Bf6 {[%emt 0:04:08]} 21. Bd4 {[%emt 0:01:38]} Nb3 {[%emt 0:05:24]} 22. Bc3 {[%emt 0:09:56]} Ndc5 {[%emt 0:01:32]} 23. Qe3 {[%emt 0:02:06]} Qe7 {[%emt 0:08:40]} 24. Nd2 {[%emt 0:04:17]} Bxc3 {[%emt 0:11:22]} 25. Qxc3 {[%emt 0:00:25]} Nxd2 {[%emt 0:04:37]} 26. Qxd2 {[%emt 0:00:07]} Qf6 {[%emt 0:08:38]} 27. Rb1 {[%emt 0:18:47]} Nb3 {[%emt 0:07:02]} 28. Qe3 {[%emt 0:08:35]} Rfc8 {[%emt 0:07:23]} 29. Rfd1 {[%emt 0:02:10]} Rc5 {[%emt 0:01:19]} 30. g4 {[%emt 0:02:31]} g6 {[%emt 0:04:39]} 31. gxf5 {[%emt 0:01:03]} Qxf5 {[%emt 0:00:05]} 32. h3 {[%emt 0:00:26]} Rf8 {[%emt 0:00:37]} 33. Rf1 {[%emt 0:00:52]} Qf6 {[%emt 0:01:55]} 34. Rbd1 {[%emt 0:02:16]} Qe7 {[%emt 0:08:36]} 35. Kh1 {[%emt 0:03:36]} Kh8 {[%emt 0:01:01]} 36. Rde1 {[%emt 0:04:43]} Rc7 {[%emt 0:02:08]} 37. Bd1 {[%emt 0:02:39]} Nc5 {[%emt 0:00:05]} 38. Bc2 {[%emt 0:00:14]} Qg7 {[%emt 0:00:13]} 39. Rb1 {[%emt 0:01:04]} Rcf7 {[%emt 0:01:12]} 40. b4 {[%emt 0:00:00]} axb3 {[%emt 0:00:00]} 41. Bxb3 {[%emt 0:00:57]} Qh6 {[%emt 0:10:27]} 42. Bc2 {[%emt 0:00:49]} Rxf4 {[%emt 0:01:42]} 43. Qc3+ {[%emt 0:00:28]} Kg8 {[%emt 0:00:28]} 44. Rxf4 {[%emt 0:01:13]} Qxf4 {[%emt 0:00:11]} 45. Qe1 {[%emt 0:00:49]} Qf3+ {[%emt 0:00:14]} 46. Kg1 {[%emt 0:00:17]} Rf5 {[%emt 0:01:32]} 47. Qh4 {[%emt 0:00:35]} Qe3+ {[%emt 0:07:42]} 48. Kh1 {[%emt 0:00:27]} Qf3+ {[%emt 0:00:50]} 49. Kg1 {[%emt 0:00:05]} Rf8 0-1

[Event "EYCC Open-U12 2019"]
[Site "Bratislava"]
[Date "2019.08.09"]
[Round "8.35"]
[White "Codreanu, Marius"]
[Black "Andreev, Konstantin"]
[Result "0-1"]
[ECO "B30"]
[WhiteElo "1834"]
[BlackElo "2271"]
[Annotator "NA"]
[PlyCount "68"]
[EventDate "2019.08.02"]
[EventType "swiss"]
[EventCountry "SVK"]
[SourceTitle "playchess.com"]
[Source "ChessBase"]
[SourceQuality "1"]
[TimeControl "40/5400+30:1800+30"]

1. e4 {[%emt 0:00:00]} c5 {[%emt 0:00:00]} 2. Nf3 {[%emt 0:00:00]} Nc6 {[%emt 0:00:00]} 3. Bb5 {[%emt 0:00:00]} e6 {[%emt 0:00:00]} 4. Bxc6 {[%emt 0:00:51]} bxc6 {[%emt 0:00:03]} 5. O-O {[%emt 0:00:36]} Ne7 {[%emt 0:00:10]} 6. Re1 {[%emt 0:01:55]} Ng6 {[%emt 0:00:06]} 7. e5 {[%emt 0:00:51]} Be7 {[%emt 0:00:29]} 8. c4 {[%emt 0:08:36]} f6 {[%emt 0:01:55]} 9. h4 {[%emt 0:17:18]} O-O {[%emt 0:03:21]} 10. g3 {[%emt 0:07:50]} Nxe5 {[%emt 0:00:56]} 11. Nxe5 {[%emt 0:03:09]} fxe5 {[%emt 0:00:06]} 12. Rxe5 {[%emt 0:00:40]} d6 {[%emt 0:01:32]} 13. Re3 {[%emt 0:09:08]} e5 {[%emt 0:02:53]} 14. d3 {[%emt 0:10:08]} Qe8 {[%emt 0:03:13]} 15. Rf3 {[%emt 0:09:37]} Bf5 {[%emt 0:02:45]} 16. Nc3 {[%emt 0:03:03]} Qg6 {[%emt 0:02:12]} 17. Bg5 {[%emt 0:03:44]} Bxg5 {[%emt 0:03:06]} 18. hxg5 {[%emt 0:00:04]} Qxg5 {[%emt 0:01:13]} 19. Qa4 {[%emt 0:05:39]} Bg4 {[%emt 0:03:39]} 20. Rxf8+ {[%emt 0:00:31]} Rxf8 {[%emt 0:00:09]} 21. f4 {[%emt 0:03:48]} exf4 {[%emt 0:01:18]} 22. Ne4 {[%emt 0:00:51]} Qh5 {[%emt 0:01:02]} 23. Qxc6 {[%emt 0:02:43]} Bf3 {[%emt 0:01:31]} 24. Qd5+ {[%emt 0:01:51]} Qxd5 {[%emt 0:00:07]} 25. cxd5 {[%emt 0:00:02]} Bxe4 {[%emt 0:00:18]} 26. dxe4 {[%emt 0:00:02]} fxg3 {[%emt 0:00:29]} 27. a3 {[%emt 0:01:43]} Rb8 {[%emt 0:06:44]} 28. Rc1 {[%emt 0:02:34]} Rxb2 {[%emt 0:01:27]} 29. e5 {[%emt 0:00:04]} Rd2 {[%emt 0:02:31]} 30. exd6 {[%emt 0:00:22]} Rxd5 {[%emt 0:00:31]} 31. a4 {[%emt 0:01:04]} Kf7 {[%emt 0:02:16]} 32. Kg2 {[%emt 0:00:34]} Ke6 {[%emt 0:00:11]} 33. Rb1 {[%emt 0:00:08]} Rxd6 {[%emt 0:00:08]} 34. Kxg3 {[%emt 0:00:05]} c4 {[%emt 0:00:46]} 0-1

[Event "EYCC Open-U12 2019"]
[Site "Bratislava"]
[Date "2019.08.09"]
[Round "8.36"]
[White "Dudarev, Vladislav"]
[Black "Janeczko, Jakub"]
[Result "1/2-1/2"]
[ECO "A22"]
[WhiteElo "2137"]
[BlackElo "1663"]
[Annotator "NA"]
[PlyCount "91"]
[EventDate "2019.08.02"]
[EventType "swiss"]
[EventCountry "SVK"]
[SourceTitle "playchess.com"]
[Source "ChessBase"]
[SourceQuality "1"]
[TimeControl "40/5400+30:1800+30"]

1. c4 {[%emt 0:00:00]} e5 {[%emt 0:00:00]} 2. Nc3 {[%emt 0:00:00]} Nf6 {[%emt 0:00:32]} 3. g3 {[%emt 0:00:00]} c6 {[%emt 0:00:43]} 4. Nf3 {[%emt 0:00:13]} e4 {[%emt 0:00:27]} 5. Nd4 {[%emt 0:00:03]} d5 {[%emt 0:00:18]} 6. cxd5 {[%emt 0:00:31]} Bc5 {[%emt 0:01:58]} 7. Nb3 {[%emt 0:07:22]} Bb6 {[%emt 0:02:10]} 8. Bg2 {[%emt 0:14:57]} cxd5 {[%emt 0:00:55]} 9. d3 {[%emt 0:00:21]} e3 {[%emt 0:14:17]} 10. Bxe3 {[%emt 0:03:38]} Bxe3 {[%emt 0:01:31]} 11. fxe3 {[%emt 0:00:03]} O-O {[%emt 0:02:56]} 12. O-O {[%emt 0:01:40]} Re8 {[%emt 0:02:06]} 13. Qd2 {[%emt 0:00:42]} Nc6 {[%emt 0:06:36]} 14. Kh1 {[%emt 0:04:16]} h5 {[%emt 0:08:33]} 15. e4 {[%emt 0:06:53]} dxe4 {[%emt 0:07:20]} 16. Nxe4 {[%emt 0:01:26]} Nxe4 {[%emt 0:00:43]} 17. Bxe4 {[%emt 0:00:09]} Bh3 {[%emt 0:07:48]} 18. Rf2 {[%emt 0:04:20]} Ne5 {[%emt 0:03:34]} 19. Qf4 {[%emt 0:06:29]} g5 {[%emt 0:05:37]} 20. Qf6 {[%emt 0:08:34]} Qxf6 {[%emt 0:01:21]} 21. Rxf6 {[%emt 0:00:02]} Kg7 {[%emt 0:01:46]} 22. Rf2 {[%emt 0:03:33]} Ng4 {[%emt 0:01:03]} 23. Rf3 {[%emt 0:04:19]} Ne5 {[%emt 0:02:21]} 24. Rf2 {[%emt 0:00:01]} Ng4 {[%emt 0:00:07]} 25. Rf5 {[%emt 0:00:05]} Ne5 {[%emt 0:00:08]} 26. g4 {[%emt 0:05:50]} Bxg4 {[%emt 0:01:50]} 27. Rf2 {[%emt 0:00:24]} Re7 {[%emt 0:04:10]} 28. Rc1 {[%emt 0:03:55]} Rc8 {[%emt 0:02:08]} 29. Rxc8 {[%emt 0:00:31]} Bxc8 {[%emt 0:00:01]} 30. Nd4 {[%emt 0:00:46]} Ng4 {[%emt 0:02:47]} 31. Rf1 {[%emt 0:05:03]} Nf6 {[%emt 0:02:53]} 32. Bf5 {[%emt 0:01:25]} Re8 {[%emt 0:01:43]} 33. Bxc8 {[%emt 0:01:04]} Rxc8 {[%emt 0:00:02]} 34. Nf5+ {[%emt 0:00:01]} Kf8 {[%emt 0:02:31]} 35. Nd6 {[%emt 0:00:26]} Rc6 {[%emt 0:00:05]} 36. Rxf6 {[%emt 0:00:43]} Ke7 {[%emt 0:00:01]} 37. Rxf7+ {[%emt 0:00:01]} Kxd6 {[%emt 0:00:02]} 38. Rxb7 {[%emt 0:00:02]} Rc2 {[%emt 0:00:35]} 39. e3 {[%emt 0:01:15]} h4 {[%emt 0:01:09]} 40. h3 {[%emt 0:00:00]} Re2 {[%emt 0:00:00]} 41. Rxa7 {[%emt 0:03:01]} Rxe3 {[%emt 0:01:15]} 42. Ra3 {[%emt 0:04:57]} Rxh3+ {[%emt 0:00:12]} 43. Kg2 {[%emt 0:00:02]} Rg3+ {[%emt 0:00:12]} 44. Kf2 {[%emt 0:00:07]} g4 {[%emt 0:05:11]} 45. Rc3 {[%emt 0:02:56]} Rf3+ {[%emt 0:00:16]} 46. Kg1 {[%emt 0:02:08]} 1/2-1/2

[Event "EYCC Open-U12 2019"]
[Site "Bratislava"]
[Date "2019.08.09"]
[Round "8.37"]
[White "Celik, Hasan Huseyin"]
[Black "Musaev, Matej Elbek"]
[Result "1-0"]
[ECO "D35"]
[WhiteElo "1903"]
[BlackElo "1693"]
[Annotator "NA"]
[PlyCount "53"]
[EventDate "2019.08.02"]
[EventType "swiss"]
[EventCountry "SVK"]
[SourceTitle "playchess.com"]
[Source "ChessBase"]
[SourceQuality "1"]
[TimeControl "40/5400+30:1800+30"]

1. d4 {[%emt 0:00:00]} d5 {[%emt 0:00:00]} 2. c4 {[%emt 0:00:00]} e6 {[%emt 0:00:00]} 3. cxd5 {[%emt 0:00:00]} exd5 {[%emt 0:00:00]} 4. Nc3 {[%emt 0:00:00]} Nf6 {[%emt 0:00:18]} 5. Bg5 {[%emt 0:00:04]} Be7 {[%emt 0:00:23]} 6. e3 {[%emt 0:00:07]} c6 {[%emt 0:01:29]} 7. Bd3 {[%emt 0:00:09]} Nbd7 {[%emt 0:00:57]} 8. h3 {[%emt 0:01:10]} O-O {[%emt 0:01:13]} 9. Qc2 {[%emt 0:00:44]} h6 {[%emt 0:00:06]} 10. Bf4 {[%emt 0:00:08]} b5 {[%emt 0:03:08]} 11. Nf3 {[%emt 0:05:01]} a5 {[%emt 0:01:26]} 12. O-O {[%emt 0:01:23]} Ba6 {[%emt 0:03:35]} 13. Rfc1 {[%emt 0:04:30]} Qb6 {[%emt 0:05:42]} 14. Qe2 {[%emt 0:08:28]} Rfe8 {[%emt 0:03:37]} 15. Ne5 {[%emt 0:03:45]} Rac8 {[%emt 0:09:56]} 16. Nxd7 {[%emt 0:03:43]} Nxd7 {[%emt 0:00:04]} 17. Bxh6 {[%emt 0:01:21]} Nf6 {[%emt 0:11:06]} 18. Bg5 {[%emt 0:00:44]} Qb7 {[%emt 0:02:24]} 19. a4 {[%emt 0:01:04]} Ne4 {[%emt 0:04:25]} 20. Bxe7 {[%emt 0:00:28]} Nxc3 {[%emt 0:03:12]} 21. Rxc3 {[%emt 0:02:14]} Rxe7 {[%emt 0:00:53]} 22. axb5 {[%emt 0:00:23]} cxb5 {[%emt 0:00:08]} 23. Rxc8+ {[%emt 0:01:09]} Qxc8 {[%emt 0:00:04]} 24. Bxb5 {[%emt 0:00:12]} Bxb5 {[%emt 0:00:08]} 25. Qxb5 {[%emt 0:00:06]} Rb7 {[%emt 0:00:10]} 26. Qxa5 {[%emt 0:00:25]} Rxb2 {[%emt 0:00:16]} 27. Qxd5 {[%emt 0:01:20]} 1-0

[Event "EYCC Open-U12 2019"]
[Site "Bratislava"]
[Date "2019.08.09"]
[Round "8.38"]
[White "Aleksanyan, Davit"]
[Black "Foerster-Yialamas, Lucas"]
[Result "1-0"]
[ECO "B24"]
[WhiteElo "1797"]
[BlackElo "2028"]
[Annotator "NA"]
[PlyCount "99"]
[EventDate "2019.08.02"]
[EventType "swiss"]
[EventCountry "SVK"]
[SourceTitle "playchess.com"]
[Source "ChessBase"]
[SourceQuality "1"]
[TimeControl "40/5400+30:1800+30"]

1. e4 {[%emt 0:00:00]} c5 {[%emt 0:00:00]} 2. Nc3 {[%emt 0:00:00]} Nc6 {[%emt 0:00:00]} 3. d3 {[%emt 0:01:25]} g6 {[%emt 0:01:33]} 4. g3 {[%emt 0:00:28]} Bg7 {[%emt 0:00:30]} 5. Bg2 {[%emt 0:00:33]} e6 {[%emt 0:01:07]} 6. Be3 {[%emt 0:01:24]} d6 {[%emt 0:00:11]} 7. Qd2 {[%emt 0:00:14]} Nd4 {[%emt 0:00:41]} 8. Nd1 {[%emt 0:00:36]} Ne7 {[%emt 0:00:25]} 9. c3 {[%emt 0:00:16]} Ndc6 {[%emt 0:00:05]} 10. Ne2 {[%emt 0:01:43]} Ne5 {[%emt 0:11:01]} 11. h3 {[%emt 0:07:58]} c4 {[%emt 0:00:14]} 12. Nc1 {[%emt 0:10:14]} cxd3 {[%emt 0:00:10]} 13. Nxd3 {[%emt 0:00:21]} Nc4 {[%emt 0:00:06]} 14. Qe2 {[%emt 0:00:07]} Nxe3 {[%emt 0:00:37]} 15. Nxe3 {[%emt 0:00:09]} Qc7 {[%emt 0:10:37]} 16. O-O {[%emt 0:00:54]} O-O {[%emt 0:00:21]} 17. Rad1 {[%emt 0:01:16]} b6 {[%emt 0:14:40]} 18. e5 {[%emt 0:06:04]} d5 {[%emt 0:02:24]} 19. Ng4 {[%emt 0:00:44]} Nc6 {[%emt 0:06:10]} 20. Rfe1 {[%emt 0:04:34]} Kh8 {[%emt 0:06:57]} 21. Qf3 {[%emt 0:10:43]} Ba6 {[%emt 0:00:26]} 22. Qf4 {[%emt 0:03:14]} h5 {[%emt 0:11:36]} 23. Nf6 {[%emt 0:00:59]} Qe7 {[%emt 0:00:38]} 24. Nb4 {[%emt 0:08:30]} Nxb4 {[%emt 0:08:50]} 25. cxb4 {[%emt 0:00:12]} Rac8 {[%emt 0:03:14]} 26. Rd4 {[%emt 0:02:15]} Rc4 {[%emt 0:17:58]} 27. Rxc4 {[%emt 0:00:16]} Bxc4 {[%emt 0:00:55]} 28. g4 {[%emt 0:00:54]} Rc8 {[%emt 0:00:42]} 29. gxh5 {[%emt 0:00:32]} Bxf6 {[%emt 0:00:18]} 30. exf6 {[%emt 0:00:43]} Qf8 {[%emt 0:00:07]} 31. hxg6 {[%emt 0:01:29]} fxg6 {[%emt 0:00:07]} 32. Rxe6 {[%emt 0:00:27]} Kg8 {[%emt 0:01:29]} 33. Re7 {[%emt 0:00:37]} Bxa2 {[%emt 0:01:33]} 34. Rg7+ {[%emt 0:00:29]} Qxg7 {[%emt 0:00:06]} 35. fxg7 {[%emt 0:00:05]} Kxg7 {[%emt 0:00:19]} 36. Qe5+ {[%emt 0:00:13]} Kh6 {[%emt 0:00:16]} 37. Bxd5 {[%emt 0:00:15]} Rc1+ {[%emt 0:00:09]} 38. Kh2 {[%emt 0:00:12]} Bxd5 39. Qf4+ {[%emt 0:00:04]} g5 {[%emt 0:00:18]} 40. Qxc1 {[%emt 0:00:00]} Kh5 {[%emt 0:00:00]} 41. Qd1+ {[%emt 0:00:11]} Kg6 {[%emt 0:00:16]} 42. Qxd5 {[%emt 0:00:04]} a5 {[%emt 0:00:06]} 43. bxa5 {[%emt 0:00:06]} bxa5 {[%emt 0:00:05]} 44. Qxa5 {[%emt 0:00:05]} Kh5 {[%emt 0:00:04]} 45. Kg3 {[%emt 0:00:06]} Kh6 {[%emt 0:00:07]} 46. Kg4 {[%emt 0:00:04]} Kh7 {[%emt 0:00:05]} 47. Qc7+ {[%emt 0:00:05]} Kh6 {[%emt 0:00:08]} 48. Kf5 {[%emt 0:00:05]} g4 {[%emt 0:00:03]} 49. Qf7 {[%emt 0:00:06]} gxh3 {[%emt 0:00:09]} 50. Qg6# {[%emt 0:00:04]} 1-0

[Event "EYCC Open-U12 2019"]
[Site "Bratislava"]
[Date "2019.08.09"]
[Round "8.39"]
[White "Skreko, Igor"]
[Black "Tunsjo, Axel"]
[Result "0-1"]
[ECO "A25"]
[WhiteElo "1688"]
[BlackElo "2039"]
[Annotator "NA"]
[PlyCount "60"]
[EventDate "2019.08.02"]
[EventType "swiss"]
[EventCountry "SVK"]
[SourceTitle "playchess.com"]
[Source "ChessBase"]
[SourceQuality "1"]
[TimeControl "40/5400+30:1800+30"]

1. c4 {[%emt 0:00:00]} e5 {[%emt 0:00:00]} 2. Nc3 {[%emt 0:00:00]} Nc6 {[%emt 0:00:00]} 3. g3 {[%emt 0:00:00]} Bc5 {[%emt 0:00:08]} 4. Bg2 {[%emt 0:00:00]} d6 {[%emt 0:00:13]} 5. a3 {[%emt 0:00:13]} a5 {[%emt 0:00:52]} 6. e3 {[%emt 0:01:10]} h5 {[%emt 0:01:11]} 7. Nf3 {[%emt 0:02:35]} Ba7 {[%emt 0:02:41]} 8. d4 {[%emt 0:03:00]} exd4 {[%emt 0:03:07]} 9. exd4 {[%emt 0:00:35]} Bg4 {[%emt 0:01:32]} 10. Be3 {[%emt 0:04:52]} h4 {[%emt 0:07:51]} 11. h3 {[%emt 0:02:43]} Bxf3 {[%emt 0:01:15]} 12. Qxf3 {[%emt 0:00:26]} Bxd4 {[%emt 0:04:40]} 13. Bxd4 {[%emt 0:01:10]} Nxd4 {[%emt 0:01:07]} 14. Qxb7 {[%emt 0:01:07]} Rb8 {[%emt 0:00:03]} 15. Qe4+ {[%emt 0:00:16]} Qe7 {[%emt 0:00:02]} 16. Qxe7+ {[%emt 0:01:19]} Nxe7 {[%emt 0:03:20]} 17. Rb1 {[%emt 0:00:14]} hxg3 {[%emt 0:04:00]} 18. fxg3 {[%emt 0:00:14]} Kd7 {[%emt 0:01:41]} 19. O-O {[%emt 0:03:27]} f6 {[%emt 0:04:08]} 20. g4 {[%emt 0:03:12]} Ng6 {[%emt 0:00:40]} 21. b4 {[%emt 0:01:53]} axb4 {[%emt 0:02:52]} 22. axb4 {[%emt 0:00:06]} Nc2 {[%emt 0:00:10]} 23. b5 {[%emt 0:02:49]} Ne3 {[%emt 0:00:40]} 24. Bc6+ {[%emt 0:01:41]} Kd8 {[%emt 0:00:32]} 25. Rfe1 {[%emt 0:16:49]} Nxc4 {[%emt 0:00:35]} 26. Re6 {[%emt 0:02:06]} Nce5 {[%emt 0:01:05]} 27. Nd5 {[%emt 0:01:03]} Nxc6 {[%emt 0:00:47]} 28. Ra1 {[%emt 0:00:31]} Rxb5 {[%emt 0:00:44]} 29. Rc1 {[%emt 0:02:06]} Rxd5 {[%emt 0:00:14]} 30. Rxc6 {[%emt 0:00:07]} Kd7 {[%emt 0:00:03]} 0-1

[Event "EYCC Open-U12 2019"]
[Site "Bratislava"]
[Date "2019.08.09"]
[Round "8.40"]
[White "Lavrencic, Matic"]
[Black "Georgiev, Konstantin"]
[Result "0-1"]
[ECO "B31"]
[WhiteElo "1564"]
[BlackElo "1919"]
[Annotator "NA"]
[PlyCount "98"]
[EventDate "2019.08.02"]
[EventType "swiss"]
[EventCountry "SVK"]
[SourceTitle "playchess.com"]
[Source "ChessBase"]
[SourceQuality "1"]
[TimeControl "40/5400+30:1800+30"]

1. e4 {[%emt 0:00:00]} c5 {[%emt 0:00:00]} 2. Nf3 {[%emt 0:00:00]} Nc6 {[%emt 0:00:00]} 3. Bb5 {[%emt 0:00:02]} g6 {[%emt 0:00:00]} 4. Bxc6 {[%emt 0:00:32]} bxc6 {[%emt 0:00:00]} 5. O-O {[%emt 0:00:17]} Bg7 {[%emt 0:00:00]} 6. Re1 {[%emt 0:00:24]} d6 {[%emt 0:00:20]} 7. h3 {[%emt 0:00:33]} e5 {[%emt 0:00:18]} 8. c3 {[%emt 0:00:11]} Qb6 {[%emt 0:04:21]} 9. Na3 {[%emt 0:00:33]} Be6 {[%emt 0:09:22]} 10. Ng5 {[%emt 0:00:27]} Bd7 {[%emt 0:00:10]} 11. Qb3 {[%emt 0:02:17]} Qxb3 {[%emt 0:00:06]} 12. axb3 {[%emt 0:00:11]} h6 {[%emt 0:00:09]} 13. Nf3 {[%emt 0:00:37]} Ne7 {[%emt 0:00:41]} 14. Nc4 {[%emt 0:00:31]} Nc8 {[%emt 0:00:06]} 15. d3 {[%emt 0:01:54]} O-O {[%emt 0:01:24]} 16. Be3 {[%emt 0:00:17]} f5 {[%emt 0:00:02]} 17. Nxd6 {[%emt 0:04:05]} Nxd6 {[%emt 0:00:39]} 18. Bxc5 {[%emt 0:00:06]} Nf7 {[%emt 0:00:49]} 19. Bxf8 {[%emt 0:00:20]} Kxf8 {[%emt 0:00:02]} 20. Nh4 {[%emt 0:01:02]} f4 {[%emt 0:03:43]} 21. Nxg6+ {[%emt 0:00:54]} Kg8 {[%emt 0:00:04]} 22. Nh4 {[%emt 0:00:51]} Bf6 {[%emt 0:01:03]} 23. Nf3 {[%emt 0:00:18]} Kh7 {[%emt 0:00:11]} 24. Kh2 {[%emt 0:00:40]} Ng5 {[%emt 0:00:09]} 25. Nxg5+ {[%emt 0:00:32]} hxg5 {[%emt 0:00:02]} 26. f3 {[%emt 0:00:54]} Kg6 {[%emt 0:00:19]} 27. Ra5 {[%emt 0:06:48]} Be6 {[%emt 0:00:35]} 28. Ra6 {[%emt 0:01:21]} Rc8 {[%emt 0:00:48]} 29. b4 {[%emt 0:00:43]} g4 {[%emt 0:00:13]} 30. fxg4 {[%emt 0:01:14]} Bh4 {[%emt 0:01:30]} 31. Re2 {[%emt 0:01:28]} Rd8 {[%emt 0:02:01]} 32. Rd2 {[%emt 0:01:03]} Bg3+ {[%emt 0:00:31]} 33. Kg1 {[%emt 0:00:37]} Rd6 {[%emt 0:01:32]} 34. b5 {[%emt 0:00:28]} Bd7 {[%emt 0:00:40]} 35. b4 {[%emt 0:00:54]} Be1 {[%emt 0:00:58]} 36. Rd1 {[%emt 0:09:41]} Bxc3 37. bxc6 {[%emt 0:02:31]} Bc8 {[%emt 0:02:21]} 38. Rxa7 {[%emt 0:00:30]} Bd4+ {[%emt 0:00:30]} 39. Kh2 {[%emt 0:00:05]} Bxa7 {[%emt 0:00:07]} 40. b5 {[%emt 0:00:00]} Bd4 {[%emt 0:00:00]} 41. Rb1 {[%emt 0:03:19]} Bb6 {[%emt 0:00:22]} 42. Rb3 {[%emt 0:00:29]} Kg5 {[%emt 0:00:27]} 43. Ra3 {[%emt 0:01:14]} Kf6 {[%emt 0:15:43]} 44. Ra8 {[%emt 0:00:31]} Rd8 {[%emt 0:04:11]} 45. Rb8 {[%emt 0:01:05]} Bc7 {[%emt 0:02:43]} 46. Ra8 {[%emt 0:00:24]} Ke6 {[%emt 0:00:57]} 47. Kg1 {[%emt 0:00:52]} Kd6 {[%emt 0:00:35]} 48. Ra1 {[%emt 0:00:32]} Bb6+ {[%emt 0:00:21]} 49. Kf1 {[%emt 0:00:06]} Kc5 {[%emt 0:00:16]} 0-1